Cogmind - Beta 17 @@@ ROGUE MODE // 2026.07.23 @ 20:59:19 Player: V1-Dll Result: Destroyed by DAS Turret with DAS Cannon Performance ------------- Evolutions (1) 500 Regions Visited (5) 1000 Robots Destroyed (57) 285 Value Destroyed (1508) 1508 Prototype IDs (27) 540 Alien Tech Used (0) 0 Bonus (431) 431 TOTAL SCORE: 4264 Bonus ------- Follower Combat Kills 131 Aligned with FarCom 300 Cogmind --------- Core Integrity 0/400 Matter 4/300 Energy 69/100 System Corruption 0% Temperature Cool (0) Movement Treading (155) Location -9/Exiles Parts ------- > --- POWER (1) -------- (None) > --- PROPULSION (3) --- Improved Treads Improved Treads Advanced Treads > --- UTILITY (3) ------ High-capacity Storage Unit > --- WEAPON (2) ------- Grenade Launcher > --- INVENTORY (20) --- Advanced Treads Wheel Wheel Experimental Sensor Array Signal Interpreter Improved EM Shotgun Improved EM Shotgun Peak State ------------ > --- POWER ------------ Ion Engine > --- PROPULSION ------- Advanced Treads Advanced Treads Advanced Treads > --- UTILITY ---------- Large Storage Unit Experimental Sensor Array Medium Armor Plating > --- WEAPON ----------- Improved EM Shotgun Improved EM Shotgun > --- INVENTORY -------- Light Nuclear Core Improved Treads Improved Treads Advanced Treads Wheel Wheel Wheel High-capacity Matter Pod Structural Scanner Medium Armor Plating Reflective Plating Flak Cannon Flak Cannon Grenade Launcher Rocket Launcher [Rating: 30] Favorites ----------- Power Ion Engine Engine Ion Engine Power Core Light Nuclear Core Propulsion Improved Treads Treads Improved Treads Utility Medium Armor Plating Device Experimental Sensor Array Storage Large Storage Unit Protection Medium Armor Plating Weapon Improved EM Shotgun Energy Gun Improved EM Shotgun Ballistic Gun Assault Rifle Ballistic Cannon Flak Cannon Launcher Grenade Launcher Build | -11 -10 -10 -9 -9 -9 ------- Run | Yrd Mat Min Mat Min Exi Slots Evolved 2 | . . . 2 . . Power . | . . . . . . Propulsion 1 | . . . 1 . . Utility 1 | . . . 1 . . Weapon . | . . . . . . Parts Attached 37 | 6 5 . 20 . 6 Power 3 | 1 1 . . . 1 Engine 2 | 1 1 . . . . Core 1 | . . . . . 1 Reactor . | . . . . . . Propulsion 13 | 2 . . 9 . 2 Treads 13 | 2 . . 9 . 2 Leg . | . . . . . . Wheel . | . . . . . . Hover . | . . . . . . Flight . | . . . . . . Utility 10 | 1 2 . 7 . . Device 1 | . . . 1 . . Storage 3 | 1 1 . 1 . . Processor . | . . . . . . Hackware . | . . . . . . Protection 6 | . 1 . 5 . . Artifact . | . . . . . . Weapon 11 | 2 2 . 4 . 3 Energy Gun 2 | . . . 2 . . Energy Cannon . | . . . . . . Ballistic Gun 4 | 2 1 . 1 . . Ballistic Cannon 2 | . . . . . 2 Launcher 3 | . 1 . 1 . 1 Special Weapon . | . . . . . . Impact Weapon . | . . . . . . Slashing Weapon . | . . . . . . Piercing Weapon . | . . . . . . Special Melee Weapon . | . . . . . . Unidentified Prototypes 2 | . . . 2 . . Parts Lost 17 | . 1 . 4 . 12 Power 3 | . 1 . . . 2 Propulsion 4 | . . . . . 4 Utility 6 | . . . 3 . 3 Weapon 4 | . . . 1 . 3 Highest Loss Streak 6 | . 1 . 2 . 6 To Critical Strikes 7 | . . . . . 7 Average Backups 14 | 2 8 14 15 17 17 Power . | . . . . 1 1 Propulsion 5 | 1 2 4 5 8 7 Utility 4 | . 1 5 4 4 4 Weapon 3 | . 3 4 4 4 3 Tool/Special . | . . . . . . Unused Backups 17 | . 1 . 6 . 10 Power 3 | . . . . . 3 Propulsion 6 | . . . 3 . 3 Utility 7 | . 1 . 2 . 4 Weapon 1 | . . . 1 . . Tool/Special . | . . . . . . Average Slot Usage (%) 98 | . 98 100 99 100 95 Engine 11 | . 13 14 11 11 8 Treads 31 | . 28 28 33 33 32 Storage 12 | . 14 14 11 11 11 Protection 17 | . 13 14 21 22 19 Energy Gun 7 | . . . 12 21 6 Ballistic Gun 10 | . 26 14 8 . . Ballistic Cannon 2 | . . . . . 13 Launcher 3 | . 1 14 . . 1 Peak Build Rating 30 | 6 8 9 30 23 26 Average Rating 16 | 4 7 8 20 22 22 On Entrance 11 | . 6 8 9 23 23 Avg Prop Armor Cover (%) . | . . . . . . Naked Turns . | . . . . . . Heaviest Build 71 | 10 33 33 62 62 71 Greatest Support 69 | 40 40 40 69 69 69 Greatest Overweight (x) 1 | . . . . . 1 Average Overweight (x) . | . . . . . . Largest Inventory Capacity 20 | 8 15 15 20 20 20 Average Capacity 15 | 6 11 15 15 20 20 Most Carried 20 | 4 13 15 17 18 20 Average Carried 14 | 3 8 14 15 17 17 Final Capacity 20 | 8 15 15 20 20 20 Final Carried 18 | 4 13 15 17 18 7 Class Distribution -------------------- 85% | Mutant 14% | Commander-Mutant Dominant Class ---------------- Mutant | -10/Materials Mutant | -10/Mines Mutant | -9/Materials Mutant | -9/Mines Mutant | -9/Exiles Resources | -11 -10 -10 -9 -9 -9 ----------- Run | Yrd Mat Min Mat Min Exi Matter Collected 1744 | 260 216 80 618 70 500 Remotely . | . . . . . . Salvage Created 1789 | . 402 23 995 358 11 Parts 127 | . 32 4 73 18 . Haulers Intercepted 3 | . 1 . 2 . . Recyclers Shooed 1 | . . . . 1 . Parts Field Recycled . | . . . . . . Retrieved Matter . | . . . . . . Parts Self-Destructed . | . . . . . . Prevented . | . . . . . . Parts Restored . | . . . . . . Kills | -11 -10 -10 -9 -9 -9 ------- Run | Yrd Mat Min Mat Min Exi Combat Hostiles Destroyed 45 | . 10 3 17 9 6 Guns 25 | . 5 . 14 6 . Cannons 1 | . . . . . 1 AOE 19 | . 5 3 3 3 5 Classes Destroyed 9 | . 6 . 2 . 1 Worker 4 | . 3 . . 1 . Builder 5 | . 2 . 3 . . Hauler 3 | . 1 . 2 . . Operator 1 | . . . 1 . . Watcher 5 | . 2 . 3 . . Swarmer 6 | . 3 3 . . . Grunt 26 | . 7 . 10 9 . Sentry 7 | . . . 7 . . Assembled 6 | . . . . . 6 Best Kill Streak 7 | . 7 3 6 4 5 Combat Bots Only 5 | . 3 3 4 3 5 Max Kills in Single Turn 3 | . 2 3 3 2 3 Gunslinging 1 | . . . . 1 . Exploded 3 | . 1 3 1 2 3 Melee . | . . . . . . Uniques/NPCs Destroyed . | . . . . . . Combat | -11 -10 -10 -9 -9 -9 -------- Run | Yrd Mat Min Mat Min Exi Hostile Shots Fired 287 | . 34 2 89 33 129 Missed 79 | . 8 . 23 17 31 Hits 208 | . 26 2 66 16 98 Melee 2 | . . . . . 2 Projectile 206 | . 26 2 66 16 96 Critical Strikes 56 | . . . 1 1 54 Damage Taken 3226 | . 347 14 891 184 1790 Core 445 | . 32 8 101 33 271 Absorbed by Shields . | . . . . . . Ignored by Resistances 41 | . . . 6 27 8 Core Remaining (%) 92 | 100 . 84 . . . Volleys Fired 172 | . 38 1 52 17 64 Largest 2 | . 2 1 2 2 2 Hottest 90 | . 50 30 90 90 90 Shots Fired 320 | . 71 1 103 34 111 Gun 215 | . 63 . 101 29 22 Cannon 54 | . . . . . 54 Launcher 51 | . 8 1 2 5 35 Special . | . . . . . . Kinetic 183 | . 63 . 66 . 54 Thermal . | . . . . . . Explosive 51 | . 8 1 2 5 35 Electromagnetic 86 | . . . 35 29 22 Robot Hit Streak 13 | . 13 2 10 8 7 Robot Miss Streak 7 | . 2 . 7 3 7 Penetration Max . | . . . . . . Secondary Targets 4 | . . . 2 2 . Max Gunslinging Chain 1 | . . . 1 1 . Shots Hit Robots 244 | . 55 1 73 30 85 Core Hits 159 | . 37 4 44 24 50 Critical Kills 1 | . 1 . . . . Critical Parts Destroyed 1 | . 1 . . . . Critical Strikes 2 | . 2 . . . . Destroy 2 | . 2 . . . . Melee Attacks . | . . . . . . Impact . | . . . . . . Slashing . | . . . . . . Piercing . | . . . . . . Sneak Attacks . | . . . . . . Combat Hostiles . | . . . . . . Follow-up Attacks . | . . . . . . Damage Inflicted 4600 | . 1107 65 1382 836 1210 Guns 2080 | . 504 . 1110 454 12 Cannons 912 | . . . . . 912 Explosions 1607 | . 603 65 272 381 286 Melee . | . . . . . . Ramming 1 | . . . . 1 . Kinetic 2023 | . 504 . 607 . 912 Thermal 178 | . . . 178 . . Explosive 1429 | . 603 65 94 381 286 Electromagnetic 969 | . . . 503 454 12 Impact . | . . . . . . Slashing . | . . . . . . Piercing . | . . . . . . Highest Corruption . | . . . . . . Average Corruption . | . . . . . . Corruption Purged . | . . . . . . Corruption Blocked . | . . . . . . Overload Shots . | . . . . . . Overflow Damage 23 | . 7 . 9 . 7 Projectiles 5 | . . . . . 5 Explosions 18 | . 7 . 9 . 2 Melee . | . . . . . . Knockbacks 19 | . . . . . 19 Impact . | . . . . . . Kinetic 19 | . . . . . 19 Secondary . | . . . . . . Self-Inflicted Damage 80 | . . . 37 14 29 Shots 4 | . . . 1 2 1 Rammed 1 | . . . . 1 . Targets Rammed 1 | . . . . 1 . Kicked . | . . . . . . Crushed . | . . . . . . Highest Temperature 300 | . 37 . 117 261 300 Average Temperature 80 | . 9 . 26 100 141 Received Heat Transfer 842 | . 186 . 390 126 140 Effects 6 | . . . . . 6 Energy Bleed 3 | . . . . . 3 Interference 3 | . . . . . 3 Siege Activations . | . . . . . . Martial Activations . | . . . . . . Shielding Activations . | . . . . . . Robots Disrupted . | . . . . . . Combat Hostiles . | . . . . . . Robots Corrupted . | . . . . . . Combat Hostiles . | . . . . . . Parts Fried 3 | . . . 2 1 . Impact Corruptions . | . . . . . . Robots Melted . | . . . . . . Combat Hostiles . | . . . . . . Parts Melted 1 | . . . 1 . . Heat Transferred 200 | . . . 200 . . Parts Sabotaged . | . . . . . . Parts Stolen . | . . . . . . Parts Stripped . | . . . . . . Power Chain Reactions 4 | . . . 3 1 . Alert | -11 -10 -10 -9 -9 -9 ------- Run | Yrd Mat Min Mat Min Exi Maximum Alert Level 1 | . . . 1 . . Low Security (%) 74 | 100 100 100 28 100 . Level 1 25 | . . . 71 . . Level 2 . | . . . . . . Level 3 . | . . . . . . Level 4 . | . . . . . . Level 5 . | . . . . . . High Security . | . . . . . . Max Security . | . . . . . . Peak Influence 362 | . 199 85 362 197 . Initial 110 | . . 6 . 110 . Average 126 | . 70 9 239 152 . Influence Increases 1559 | . 367 79 854 259 . Destroy 0b10 Robot/C 920 | . 200 60 480 180 . Destroy 0b10 Robot/NC 90 | . 40 . 45 5 . Destroy Leader 258 | . 56 10 162 30 . Allied During Kill 48 | . . . 48 . . Successful Hack 53 | . 24 . 29 . . Disable Machine 45 | . . . 45 . . Destroy Structure 85 | . 32 9 15 29 . Lose Combat Pursuer 60 | . 15 . 30 15 . Influence Decreases 1559 | . 351 95 570 436 107 Entered New Map 291 | . . 10 . 174 107 Time Decay 1188 | . 341 85 500 262 . Lost Part 40 | . 10 . 30 . . Lost Ally 40 | . . . 40 . . Squads Dispatched 5 | . 1 . 4 . . Investigation 1 | . 1 . . . . Extermination . | . . . . . . Reinforcement 4 | . . . 4 . . Assault . | . . . . . . Garrison . | . . . . . . Intercept . | . . . . . . Searches Triggered . | . . . . . . Construction Impeded . | . . . . . . Haulers Reinforced . | . . . . . . Active Scanning Responses . | . . . . . . Cargo Convoy Interrupts . | . . . . . . Stealth | -11 -10 -10 -9 -9 -9 --------- Run | Yrd Mat Min Mat Min Exi Distress Signals 5 | . 1 . 4 . . Communications Jammed . | . . . . . . Distress Signals . | . . . . . . Times Spotted 77 | . 20 3 35 10 9 Peak Tracking Total 9 | . 6 3 6 3 9 Tactical Retreats 3 | . 1 . 1 1 . Traps | -11 -10 -10 -9 -9 -9 ------- Run | Yrd Mat Min Mat Min Exi Traps Triggered 1 | . 1 . . . . Indirectly . | . . . . . . Trap Hack Attempts . | . . . . . . Triggered . | . . . . . . Disarmed . | . . . . . . Reprogrammed . | . . . . . . Reused . | . . . . . . Traps Extracted . | . . . . . . Installed . | . . . . . . Triggered . | . . . . . . Machines | -11 -10 -10 -9 -9 -9 ---------- Run | Yrd Mat Min Mat Min Exi Machines Disabled 6 | . . . 3 . 3 Max in Single Turn 2 | . . . 2 . 2 Machines Repaired . | . . . . . . Machines Dismantled . | . . . . . . Machines Sabotaged . | . . . . . . Overloaded Fab Kills . | . . . . . . Hacking | -11 -10 -10 -9 -9 -9 --------- Run | Yrd Mat Min Mat Min Exi Machines Accessed 16 | . 8 . 6 1 1 Terminals 14 | . 8 . 5 1 . Fabricators . | . . . . . . Repair Stations . | . . . . . . Recycling Units . | . . . . . . Scanalyzers 1 | . . . 1 . . Garrison Access . | . . . . . . Total Hacks 51 | . 29 . 19 2 1 Successful 28 | . 18 . 8 1 1 Failed 22 | . 11 . 10 1 . Catastrophic 2 | . 1 . 1 . . Database Lockouts 1 | . . . 1 . . Manual 36 | . 24 . 8 3 1 Terminals 48 | . 29 . 17 2 . Fabricators . | . . . . . . Repair Stations . | . . . . . . Recycling Units . | . . . . . . Scanalyzers 2 | . . . 2 . . Garrison Access . | . . . . . . Terminal Hacks 14 | . 9 . 3 1 1 Part Schematic 1 | . 1 . . . . Robot Analysis 6 | . 5 . 1 . . Prototype ID Bank 1 | . 1 . . . . Branch Access Points 1 | . . . 1 . . Locate Traps 1 | . 1 . . . . Registered Components 2 | . 1 . 1 . . Zone Layout 1 | . . . . 1 . Proto ID Catalog 1 | . . . . . 1 Fabricator Hacks . | . . . . . . Repair Station Hacks . | . . . . . . Recycling Unit Hacks . | . . . . . . Scanalyzer 1 | . . . 1 . . Retrieve Study 1 | . . . 1 . . Garrison Access Hacks . | . . . . . . Unauthorized Hacks 13 | . 9 . 4 . . Terminals 13 | . 9 . 4 . . Assimilate 1 | . 1 . . . . Botnet 5 | . 3 . 2 . . Skim 7 | . 5 . 2 . . Fabricators . | . . . . . . Repair Stations . | . . . . . . Recycling Units . | . . . . . . Scanalyzers . | . . . . . . Garrison Access . | . . . . . . Data Cores Recovered . | . . . . . . Used . | . . . . . . Hacking Detections 15 | . 8 . 6 1 . Full Trace Events . | . . . . . . Feedback Events . | . . . . . . Feedback Blocked . | . . . . . . Robot Schematics Acquired . | . . . . . . Robots Built . | . . . . . . Authchips . | . . . . . . Time . | . . . . . . Total Robot Build Rating . | . . . . . . Part Schematics Acquired 1 | . 1 . . . . Parts Built . | . . . . . . Authchips . | . . . . . . Time . | . . . . . . Total Part Build Rating . | . . . . . . Part Studies Acquired 1 | . . . 1 . . Parts Repaired . | . . . . . . Time . | . . . . . . Parts Recycled . | . . . . . . Recycled Matter . | . . . . . . Retrieved Matter . | . . . . . . Retrieved Components . | . . . . . . Parts Scanalyzed . | . . . . . . Part Schematics Acquired . | . . . . . . Parts Damaged . | . . . . . . Bothacking | -11 -10 -10 -9 -9 -9 ------------ Run | Yrd Mat Min Mat Min Exi Used RIF Installer . | . . . . . . Robots Hacked . | . . . . . . Non-combat . | . . . . . . Combat . | . . . . . . Robot Hacks Applied . | . . . . . . Relay Couplers Released . | . . . . . . Fabnet Peak Effective % . | . . . . . . Robots Rewired . | . . . . . . Allies Hacked . | . . . . . . Hacks Repelled . | . . . . . . Allies | -11 -10 -10 -9 -9 -9 -------- Run | Yrd Mat Min Mat Min Exi Total Allies 4 | . 1 3 . . . Largest Group 4 | . 1 4 4 . . Highest-Rated Group 50 | . 10 50 50 . . Highest-Rated Ally 16 | . 10 16 16 . . Total Orders . | . . . . . . Ally Attacks 60 | . . . 60 . . Total Damage 606 | . . . 606 . . Kills 9 | . . . 9 . . Allies Corrupted . | . . . . . . Allies Melted . | . . . . . . Intel | -11 -10 -10 -9 -9 -9 ------- Run | Yrd Mat Min Mat Min Exi Active Infowar (turns) 2 | . . . 2 . . Sensors 2 | . . . 2 . . Robot Analysis Total 6 | . 5 . 1 . . Derelict Logs Recovered 2 | . . 2 . . . Drone Launches . | . . . . . . Drone Recoveries . | . . . . . . Exploration | -11 -10 -10 -9 -9 -9 ------------- Run | Yrd Mat Min Mat Min Exi Turns Passed 4945 | 85 1027 871 1389 563 1010 Spaces Moved 2543 | 48 479 530 710 296 480 Core 4 | 4 . . . . . Treads 2539 | 44 479 530 710 296 480 Legs . | . . . . . . Wheels . | . . . . . . Hover . | . . . . . . Flight . | . . . . . . Fastest Speed 50 | 50 160 160 145 160 145 Average Speed 157 | 150 160 160 153 160 159 Slowest Speed 216 | 160 160 160 160 160 216 Overloaded Moves . | . . . . . . Propulsion Burnouts . | . . . . . . Robots Hopped . | . . . . . . Potential Cave-ins . | . . . . . . Cave-ins Triggered . | . . . . . . Exploration Rate (%) 67 | 3 97 95 80 61 68 Regions Visited 5 Branch Regions 3 Pre-discovered Areas 2 | . . 2 . . . Known Exits Taken 2 | . . 1 1 . . Unknown Exits Taken 3 | 1 1 . . 1 . Scrap Searched 2 | . . 1 . 1 . Spaces Dug . | . . . . . . Terrain Destroyed 221 | . 38 9 13 45 116 Melee . | . . . . . . Projectile . | . . . . . . AOE 221 | . 38 9 13 45 116 Terrain Rammed . | . . . . . . Walls Destroyed . | . . . . . . Machines Disabled . | . . . . . . Actions | -11 -10 -10 -9 -9 -9 --------- Run | Yrd Mat Min Mat Min Exi Total 3156 | 58 673 552 909 350 614 Wait 325 | 1 138 19 90 34 43 Move 2538 | 47 478 529 709 295 480 Hop . | . . . . . . Pick Up 37 | 4 11 2 15 1 4 Fast Attach 10 | 6 1 . 3 . . Attach 16 | . 1 . 6 . 9 Detach 1 | . . . 1 . . Swap 31 | . 4 1 16 2 8 Drop 25 | . 2 . 17 . 6 Fire 172 | . 38 1 52 17 64 Melee . | . . . . . . Ram . | . . . . . . Kick . | . . . . . . Crush 1 | . . . . 1 . Escape Stasis . | . . . . . . Rewire . | . . . . . . Trap . | . . . . . . Miscellaneous . | . . . . . . Route ------- -11/Scrapyard -10/Materials (discovered 6 exits: *Mat x3 / [*Min x2] / Sub) -10/Mines (discovered 2 exits: *Mat x2) -9/Materials (discovered 4 exits: [*Mat x2] / *Min x2) -9/Mines (discovered 4 exits: [*Mat x2] / *Exi / [*Zio]) -9/Exiles (discovered 1 exit: [*Min]) History --------- Turn | Location | Event 18 | -11/Scrapyard | Discovered new exit (range 16) 86 | -11/Scrapyard | Entered Materials 243 | -10/Materials | Discovered new exit (range 6) 309 | -10/Materials | Build established: Mutant 556 | -10/Materials | Discovered new exit (range 7) 680 | -10/Materials | Discovered new exit (range 9) 806 | -10/Materials | Learned location of 1 exit from Storage 822 | -10/Materials | Discovered new exit (range 8) 868 | -10/Materials | Learned location of 2 exits from Mines 919 | -10/Materials | Identified exit to Subcaves 919 | -10/Materials | Identified exit to Materials 1038 | -10/Materials | Loaded intel: 16 trap records 1093 | -10/Materials | Learned location of 2 exits from Subcaves 1113 | -10/Materials | Entered Mines 1113 | -10/Mines | Accompanied by 1 ally 1191 | -10/Mines | Learned location of Storage (-8) 1210 | -10/Mines | Found a damaged Exp. Sensor Array with a note attached 1215 | -10/Mines | Found Prototype Device 1438 | -10/Mines | Received a Rocket Launcher from a helpful Derelict 1586 | -10/Mines | Found a hidden stash of uninstalled traps 1656 | -10/Mines | Assisted by bots powering up and referring to "LRC-V3" 1951 | -10/Mines | Build established: Commander-Mutant 1984 | -10/Mines | Entered Materials 1984 | -9/Materials | Accompanied by 4 allies 1984 | -9/Materials | Evolved 2 slots: Propulsion x1, Utility x1 2282 | -9/Materials | Discovered new exit (range 7) 2413 | -9/Materials | Lost 4 allies 2679 | -9/Materials | Build established: Mutant 2690 | -9/Materials | Identified Exp. Sensor Array 2818 | -9/Materials | Discovered new exit (range 7) 2941 | -9/Materials | Discovered new exit (range 7) 3060 | -9/Materials | Central database locked down 3112 | -9/Materials | Identified exit to Mines 3373 | -9/Materials | Entered Mines 3451 | -9/Mines | Discovered new exit (range 10) 3899 | -9/Mines | A Derelict revealed a hidden shortcut to a safe place 3906 | -9/Mines | Discovered new exit (range 6) 3930 | -9/Mines | Deemed a non-threat by the Exiles lab entrance 3930 | -9/Mines | Discovered new exit (range 5) 3936 | -9/Mines | Entered Exiles 3975 | -9/Exiles | Met 8R-AWN 4004 | -9/Exiles | Met EX-HEX 4045 | -9/Exiles | Met EX-BIN 4082 | -9/Exiles | Aligned with FarCom system 4084 | -9/Exiles | Given EX-Vault access code 4122 | -9/Exiles | Opened EX-Vault 4165 | -9/Exiles | Warned to stay clear of 0b10 Research branches 4281 | -9/Exiles | Discovered new exit (range 15) 4396 | -9/Exiles | Met EX-DEC 4625 | -9/Exiles | Attacked by the Exiles 4746 | -9/Exiles | Core integrity fell below 50% 4817 | -9/Exiles | Lost 6 parts (1p2n2u1w) 4933 | -9/Exiles | Core integrity fell below 20% 4946 | -9/Exiles | Destroyed by DAS Turret with DAS Cannon Last Messages --------------- 04910_ Penetrated by HV Slug. 04915_ The unstable cave ceiling collapses. 04915_ HV Slug penetrates Earth. 04915_ HV Slug penetrates Wall. 04915_ HV Slug penetrates Machine. 04915_ HV Slug penetrates Wall. 04916_ The unstable cave ceiling collapses. 04920_ HV Slug penetrates Wall. 04920_ HV Slug penetrates Machine. 04920_ Penetrated by HV Slug. 04920_ Critical hit (Destroy). 04920_ Adv. Treads destroyed. 04925_ The unstable cave ceiling collapses. 04925_ Penetrated by HV Slug. 04925_ HV Slug penetrates Earth. 04927_ The unstable cave ceiling collapses. 04932_ Penetrated by HV Slug. 04935_ The unstable cave ceiling collapses. 04941_ Penetrated by HV Slug. 04944_ Adv. Treads blasted off. Map ----- +----------------------------------------------------+ | ?????????????# ???? ?????????????????????## ## | | ?????????####"##?# ??????????????????????#" | | ##???????#!!! ## #??????????????????????#" | | ""#??????# "# #???????????????????????#" | | ??????# ""#????????????????????????#" | | #????## " #?????????????????????????#" | | #####" "#????????????? "??????????#" | | ## #????????????" """????????## | | # "#####?????????" ?????????# | | # #????????"" ?????????#" | | ## # # ##???????"" "?????????#" | | # #??????? ""?????????#" " | | # #????????" "?????????##" ## | | # #####????# #????????##"" #? | | # # ##?### ###?######"" #? | | ###X# #"###""""""" ## | | # """""" " "" # | | # "# "" """ " | | # #### " " | | # ####?### | | # ???????### | | ?????????## | | # ##??????????## | | # #?????????????##" | | ??###???????????????#""" % """""" | | ???????????????????##" @ ######""" | | ???????????????????#"" ""##????#####" | | ???????????????????#""" """##?????????## | | ??????????????????#""" """##???????????# | | ??????????????????#""" ""#???????????## | | ??????????????????#"" ########??####" | | ??????????????????#""" ## ####""" | | ??????????????????#"" t """" | | ??????????????????##"" | | ???????????????????#"""" | | ????????????????????# | | ????????????????????#" " "" | | ????????????????????#"""" ""## ##"" | | ????????????????????#"" ""#### #### | | ?????????????????????? """"##??# #??? | | ?????????????????????""" """#??## #### | | ?????????????????????? ""##??#! "!# | | ??????????????????????"" """##???#" !# | | ???????????????????????""" #?????#" "# | | ?????????????????????????""" #??????#!!""!"# | | ??????????????????????????? ???????######## | | ???????????????????????????### ???????????????? | | ?????????????????????????????## ???????????????? | | ???????????????????????????????? ????????????????? | | ?????????????????????????????????????????????????? | +----------------------------------------------------+ Best States ------------- Heat Dissipation 28 Energy Generation 14 Energy Capacity 250 Matter Stores 300 Matter Capacity 300 Sight Range 16 Terrain Scan Density 10 Armor Coverage 450 Resistance: TH 10 Evasion (%) 40 Recoil Reduction 3 Item Schematics ----------------- Hcp. Storage Unit | -10/Materials | Hacked Robot Schematics ------------------ None Fabricated ------------ Nothing Repaired ---------- Nothing Studied --------- Imp. Treads | -9/Materials | Hacked Alien Tech Used ----------------- None Achievements -------------- None Challenges ------------ None Game ------ Seed ReflexResetBeacon Manual? 0 Play Time 00:53:53 Cumulative 342.2 hours Start 2026.07.23 @ 20:03:59 End 2026.07.23 @ 20:59:19 Sessions 1 Manual Loads 0 Difficulty Rogue Special Mode None Game No. 199 Rogue 125 Adventurer 74 Explorer 0 Win Type - Total 17 Types 14/0/0/3/0/0/0/0/0/0 Lore% 73 Gallery% 66 Achievement% 51 Wizard Run 0 Options --------- Layout 2 ASCII 0 Keyboard 0 Movement Mouse Keybinds 0 Fullscreen 1 Font 32/SmallcapsGlow Map View 50x44 Zoom Use 0% Tactical HUD 1 Map Filters NONE Filters NONE Steam 1 RUN: 76d2416d-cea8-4680-8ef2-812796279566